bitfinex/quotes_SOLUSD_20250129
["timestamp","ask_amount","ask_price","bid_price","bid_amount"]
[1738183832543,1.0,235.24,235.2,58.10440376]
[1738183832743,1.0,235.25,235.24,23.776884]
[1738183833149,1.0,235.25,235.1,2.76190323]
[1738183833350,1.0,235.12,235.1,1.76190323]
[1738183833579,1.0,235.12,235.03,4.2547]
[1738183833879,1.0,235.1,235.03,14.8916]
[1738183834078,1.0,235.1,235.09,34.20202976]
[1738183834378,1.0,235.1,235.09,58.35538376]
[1738183834682,1.0,235.09,235.08,34.20202976]
[1738183834873,1.0,235.13,235.08,34.83995148]
[1738183835177,1.0,235.13,235.12,43.902374]
[1738183835359,1.0,235.13,235.12,44.54017039]
[1738183835687,1.0,235.13,235.12,78.61671015]
[1738183835976,1.0,235.13,235.12,77.97891376]
[1738183836146,1.0,235.13,235.12,58.10440376]
[1738183836347,1.0,235.22,235.17,24.153354]
[1738183836556,1.0,235.22,235.21,23.902374]
[1738183836752,1.0,235.22,235.21,24.41446556]
[1738183836970,1.0,235.22,235.21,23.776884]
[1738183837163,1.0,235.19,235.17,0.63760338]
[1738183837360,1.0,235.15,235.14,34.20202976]
[1738183837572,1.0,235.13,235.1,34.20202976]
[1738183837771,1.0,235.11,235.05,20.0]
[1738183837977,1.0,235.18,235.16,0.12549]
[1738183838176,1.0,235.16,235.15,23.902374]
[1738183838380,1.0,235.18,235.16,0.12549]
[1738183838693,1.0,235.23,235.17,24.153354]
[1738183839186,0.03,235.25,235.24,43.902374]
[1738183839563,0.03,235.25,235.24,57.97891376]
[1738183839958,0.03,235.25,235.24,58.10440376]
[1738183840178,0.03,235.25,235.24,58.35538376]
[1738183840384,1.03,235.25,235.24,58.10440376]
[1738183840678,0.03,235.25,235.24,58.99283015]
[1738183840888,1.03,235.25,235.24,58.61636015]
[1738183841257,0.03,235.25,235.24,58.99283015]
[1738183841764,0.03,235.25,235.24,58.61636015]
[1738183841969,1.03,235.25,235.24,58.99283015]
[1738183842393,1.03,235.25,235.24,58.74185015]
[1738183842770,0.03,235.25,235.24,59.11832015]
[1738183842991,0.03,235.34,235.29,0.12549]
[1738183843287,0.03,235.34,235.33,0.12549]
[1738183843587,1.0,235.3,235.29,23.776884]
[1738183843763,1.0,235.26,235.22,4.2513]
[1738183844167,0.03,235.34,235.3,0.37647]
[1738183844366,0.03,235.34,235.33,20.50196]
[1738183844580,0.03,235.36,235.35,0.50196]
[1738183844766,0.03,235.36,235.35,58.48087376]
[1738183844960,0.03,235.36,235.35,58.35538376]
[1738183845361,1.0,235.41,235.4,0.12549]
[1738183845596,1.0,235.41,235.36,34.83906818]
[1738183845771,1.0,235.37,235.36,34.83906818]
[1738183845965,1.0,235.37,235.36,57.97891376]
[1738183846167,1.0,235.33,235.31,0.63724801]
[1738183846472,1.0,235.33,235.32,58.10440376]
[1738183846676,1.0,235.29,235.28,34.20202976]
[1738183847178,1.0,235.31,235.28,58.35538376]
[1738183847385,1.0,235.31,235.3,58.10440376]
[1738183847583,1.0,235.31,235.3,57.97891376]
[1738183847888,1.0,235.31,235.3,58.10440376]
[1738183848083,1.03,235.34,235.32,0.12549]
[1738183848289,0.03,235.34,235.33,59.11810212]
[1738183848469,1.03,235.34,235.33,59.11810212]
[1738183848669,0.03,235.34,235.33,59.11810212]
[1738183849169,1.0,235.44,235.4,0.12549]
[1738183849368,0.063,235.47,235.41,34.83895658]
[1738183849369,1.0,235.42,235.41,34.83895658]
[1738183850092,0.063,235.47,235.42,23.776884]
[1738183850093,1.0,235.44,235.42,23.776884]
[1738183850269,1.0,235.44,235.42,24.41394346]
[1738183850470,1.0,235.44,235.42,0.63706215]
[1738183850670,1.0,235.44,235.43,23.776884]
[1738183851866,1.0,235.34,235.33,35.09474382]
[1738183852390,1.0,235.34,235.33,58.99711782]
[1738183852887,1.0,235.34,235.33,35.22023382]
[1738183853199,1.0,235.34,235.33,58.99711782]
[1738183853877,1.0,235.34,235.33,0.2556]
[1738183854189,1.0,235.34,235.33,35.09498035]
[1738183854392,1.0,235.34,235.33,58.87186435]
[1738183854817,1.0,235.34,235.33,58.99735435]
[1738183854968,1.0,235.34,235.33,59.24833435]
[1738183855167,34.20202976,235.46,235.36,20.0]
[1738183855168,1.0,235.4,235.36,20.0]
[1738183855470,1.0,235.42,235.41,23.776884]
[1738183855778,1.0,235.38,235.37,34.20202976]
[1738183855993,1.0,235.38,235.37,57.97891376]
[1738183856192,1.0,235.38,235.37,58.35538376]
[1738183856402,1.0,235.38,235.37,57.97891376]
[1738183856573,1.0,235.38,235.37,58.10440376]
[1738183856907,1.0,235.42,235.37,38.45062976]
[1738183857193,0.063,235.47,235.44,20.0]
[1738183857399,0.03,235.5,235.49,43.902374]
[1738183857600,0.03,235.5,235.49,82.60178376]
[1738183857975,0.03,235.5,235.49,82.72727376]
[1738183858289,0.03,235.5,235.49,23.776884]
[1738183859805,1.0,235.46,235.45,34.20202976]
[1738183859986,1.0,235.42,235.41,34.20202976]
[1738183860490,1.0,235.42,235.41,58.35538376]
[1738183860676,1.0,235.42,235.4,0.63691063]
[1738183860878,21.0,235.48,235.34,4.86]
[1738183860879,1.0,235.38,235.37,34.20202976]
[1738183861601,1.0,235.36,235.35,34.20202976]
[1738183861800,1.0,235.36,235.33,0.3186]
[1738183861801,1.0,235.34,235.33,0.3186]
[1738183862005,1.0,235.34,235.33,34.64611976]
[1738183862299,1.0,235.36,235.35,0.37647]
[1738183862493,1.0,235.36,235.35,58.48087376]
[1738183862798,1.0,235.36,235.35,58.10440376]
[1738183863000,1.0,235.36,235.35,58.7415316]
[1738183863178,1.0,235.38,235.36,23.776884]
[1738183863381,1.0,235.38,235.36,24.41410881]
[1738183863885,1.0,235.34,235.33,34.52062976]
[1738183864083,1.0,235.38,235.35,20.50196]
[1738183864298,1.0,235.38,235.37,58.48087376]
[1738183864595,0.03,235.5,235.39,0.37647]
[1738183864596,1.0,235.4,235.39,0.37647]
[1738183864805,1.0,235.4,235.39,58.99236954]
[1738183864999,1.0,235.42,235.41,0.37647]
[1738183865304,1.0,235.42,235.41,0.63698186]
[1738183865502,1.0,235.42,235.41,58.99236562]
[1738183866013,1.0,235.44,235.43,0.12549]
[1738183866193,1.0,235.44,235.43,24.41382013]
[1738183866378,1.0,235.38,235.37,34.20202976]
[1738183866582,1.0,235.38,235.36,0.63700948]
[1738183866779,1.0,235.35,235.33,0.063]
[1738183867289,1.0,235.35,235.34,23.902374]
[1738183867482,1.0,235.35,235.34,24.53955425]
[1738183867692,1.0,235.35,235.33,0.063]
[1738183867883,3.5494,235.35,235.33,0.063]
[1738183868699,38.75142976,235.35,235.33,0.063]
[1738183869183,0.76426254,235.34,235.33,0.063]
[1738183869381,1.0,235.17,235.16,34.20202976]
[1738183869686,1.0,235.14,235.13,0.63769152]
[1738183869887,0.12549,235.28,235.13,0.63769152]
[1738183869888,1.0,235.17,235.14,24.278844]
[1738183870103,1.0,235.19,235.17,0.50196]
[1738183870293,1.0,235.19,235.17,24.278844]
[1738183870492,1.0,235.19,235.18,92.68290352]
[1738183870685,2.5487,235.41,235.32,23.902374]
[1738183870893,10.6453,235.43,235.36,23.776884]
[1738183871196,9.0263,235.43,235.36,23.776884]
[1738183871396,34.20202976,235.42,235.33,34.20202976]
[1738183871790,2.5486,235.42,235.34,23.776884]
[1738183871984,1.0,235.47,235.31,0.12549]
[1738183871985,0.63877254,235.47,235.39,34.32751976]
[1738183872182,0.03,235.47,235.42,23.776884]
[1738183872392,0.03,235.47,235.43,23.776884]
[1738183872599,0.03,235.47,235.39,34.32751976]
[1738183872792,1.66877254,235.47,235.36,0.63710723]
[1738183872990,34.20202976,235.44,235.36,0.63710723]
[1738183873191,34.20202976,235.44,235.37,23.776884]
[1738183873411,34.20202976,235.42,235.35,0.063]
[1738183873701,0.63877254,235.41,235.35,0.063]
[1738183873905,36.75082976,235.4,235.35,0.063]
[1738183874095,37.3896023,235.4,235.35,0.063]
[1738183874609,35.20202976,235.36,235.35,0.063]
[1738183874789,35.32751976,235.36,235.35,0.063]
[1738183875114,34.8408023,235.36,235.22,34.20202976]
[1738183875295,34.8408023,235.36,235.2,4.2516]
[1738183875296,35.20202976,235.38,235.29,23.776884]
[1738183875491,35.8408023,235.38,235.29,24.41426303]
[1738183875682,35.8408023,235.38,235.21,34.83939889]
[1738183875683,34.20202976,235.31,235.21,34.83939889]
[1738183875886,36.75202976,235.29,235.21,0.63736913]
[1738183876114,2.5496,235.33,235.25,34.45300976]
[1738183876409,36.75122976,235.37,235.29,0.12549]
[1738183876599,34.20202976,235.33,235.23,34.83941798]
[1738183876805,34.20202976,235.25,235.15,34.20202976]
[1738183877008,34.20202976,235.25,235.19,0.63766293]
[1738183877301,34.20202976,235.29,235.2,0.12549]
[1738183877507,34.20202976,235.25,235.15,34.20202976]
[1738183877687,34.20202976,235.23,235.16,0.63776378]
[1738183877890,3.18957254,235.22,235.14,0.63775513]
[1738183878097,2.5508,235.22,235.14,0.63775513]
[1738183878291,3.18957254,235.22,235.15,23.776884]
[1738183878511,20.0,235.2,235.14,0.63775513]
[1738183878813,20.0,235.2,235.09,0.063]
[1738183878814,34.8408023,235.19,235.09,0.063]
[1738183879114,0.63877254,235.21,235.09,0.70095308]
[1738183879297,1.0,235.25,235.18,24.032484]
[1738183879298,3.5505,235.25,235.18,24.032484]
[1738183879613,34.20202976,235.27,235.2,23.776884]
[1738183879795,36.75222976,235.27,235.2,23.776884]
[1738183880110,34.20202976,235.21,235.18,0.2556]
[1738183880312,35.32751976,235.19,235.18,0.2556]
[1738183880907,34.20202976,235.19,235.08,0.63802113]
[1738183881217,36.75212976,235.29,235.18,23.776884]
[1738183881514,12.7458,235.37,235.25,34.20202976]
[1738183881515,34.20202976,235.35,235.25,34.20202976]
[1738183881716,34.20202976,235.33,235.23,34.20202976]
[1738183882009,34.20202976,235.33,235.19,0.63748589]
[1738183882010,2.5491,235.37,235.25,58.10440376]
[1738183882211,34.20202976,235.36,235.27,57.97891376]
[1738183882508,34.20202976,235.36,235.21,0.25098]
[1738183882509,34.20202976,235.34,235.23,34.20202976]
[1738183882686,34.20202976,235.34,235.21,0.88834714]
[1738183882687,34.20202976,235.36,235.27,34.20202976]
[1738183883011,34.8408023,235.36,235.28,0.63744741]
[1738183883200,34.20202976,235.38,235.3,0.12549]
[1738183883406,34.20202976,235.4,235.32,23.776884]
[1738183883587,34.8408023,235.4,235.32,23.776884]
[1738183884014,34.20202976,235.44,235.35,34.20202976]
[1738183884213,0.63877254,235.43,235.33,34.20202976]
[1738183884511,0.63877254,235.43,235.35,0.63719525]
[1738183884512,0.03,235.37,235.35,0.63719525]
[1738183884719,0.03,235.37,235.36,0.6373497]
[1738183884924,0.03,235.37,235.36,24.4142337]
[1738183885092,0.03,235.37,235.34,34.20202976]
[1738183885093,0.03,235.37,235.31,4.2496]
[1738183885427,0.03,235.37,235.31,0.6373163]
[1738183885596,34.23202976,235.37,235.31,0.63737835]
[1738183885921,0.03,235.37,235.31,0.63737835]
[1738183886123,0.03,235.37,235.31,0.63737456]
[1738183886294,0.03,235.37,235.32,23.776884]
[1738183886489,34.20202976,235.35,235.27,0.12549]
[1738183886693,34.20202976,235.33,235.22,34.8394743]
[1738183886991,34.20202976,235.31,235.22,0.63744454]
[1738183887205,34.20202976,235.29,235.18,0.063]
[1738183887415,34.20202976,235.31,235.22,34.32751976]
[1738183887601,34.20202976,235.31,235.23,0.63751566]
[1738183887796,34.20202976,235.29,235.2,34.20202976]
[1738183887988,0.63877254,235.28,235.22,23.776884]
[1738183888242,36.75202976,235.29,235.21,0.63762143]
[1738183888508,0.63877254,235.28,235.18,34.26502976]
[1738183888822,34.20202976,235.29,235.21,23.776884]
[1738183889005,35.20202976,235.31,235.21,0.63761951]
[1738183889205,0.63877254,235.3,235.22,23.776884]
[1738183889513,34.20202976,235.29,235.21,0.63761951]
[1738183889722,34.20202976,235.27,235.18,0.063]
[1738183889925,36.75242976,235.25,235.18,0.70072213]
[1738183890097,34.20202976,235.21,235.18,0.063]
[1738183890899,20.0,235.19,235.18,0.063]
[1738183891099,34.8408023,235.21,235.18,0.063]
[1738183891600,34.20202976,235.19,235.18,0.063]
[1738183891902,34.8408023,235.19,235.18,0.063]
[1738183892212,2.5508,235.22,235.18,0.063]
[1738183892500,34.20202976,235.23,235.18,0.063]
[1738183892700,34.20202976,235.25,235.18,0.063]
[1738183892895,0.63877254,235.27,235.19,34.20202976]
[1738183893094,0.63877254,235.27,235.18,24.47764203]
[1738183893095,34.20202976,235.25,235.18,0.70067684]
[1738183893319,34.20202976,235.27,235.19,0.63781258]
[1738183893612,34.20202976,235.24,235.18,0.063]
[1738183893930,0.63877254,235.23,235.18,0.063]
[1738183894104,34.20202976,235.24,235.18,0.063]
[1738183894303,37.3912023,235.26,235.18,0.063]
[1738183895002,34.20202976,235.24,235.18,0.063]
[1738183895202,0.63877254,235.23,235.18,0.063]
[1738183895520,37.3912023,235.26,235.18,0.063]
[1738183895693,34.20202976,235.2,235.18,0.063]
[1738183895898,2.5504,235.26,235.18,0.063]
[1738183896099,0.63877254,235.25,235.18,0.063]
[1738183897121,0.03,235.27,235.18,0.063]
[1738183897427,0.12549,235.22,235.18,0.063]
[1738183897595,35.57849976,235.19,235.18,0.063]
[1738183897799,0.37647,235.18,235.09,0.063]
[1738183898117,2.67739,235.11,235.09,0.063]
[1738183898320,34.9662923,235.1,235.09,0.063]
[1738183898526,2.5519,235.12,235.09,0.063]
[1738183898725,34.20202976,235.18,235.09,38.51852976]
[1738183898894,34.20202976,235.18,235.1,23.776884]
[1738183898895,0.63877254,235.17,235.1,23.776884]
[1738183899615,34.32751976,235.16,235.09,0.063]
[1738183899817,0.63877254,235.15,235.09,0.063]
[1738183900127,2.5511,235.19,235.12,23.776884]
[1738183900128,0.63877254,235.19,235.12,23.776884]
[1738183900493,0.12549,235.18,235.12,23.776884]
[1738183901124,0.12549,235.16,235.09,4.3166]
[1738183901320,0.12549,235.16,235.1,0.63790538]
[1738183901535,0.12549,235.16,235.11,23.776884]
[1738183902428,0.63877254,235.18,235.1,0.63790445]
[1738183902602,34.20202976,235.25,235.16,20.0]
[1738183902804,0.03,235.27,235.23,34.20202976]
[1738183903006,0.03,235.27,235.25,23.776884]
[1738183903211,0.03,235.27,235.24,0.63759883]
[1738183903517,0.03,235.27,235.25,23.776884]
[1738183903724,0.03,235.27,235.26,24.41439003]
[1738183903908,0.03,235.27,235.23,34.20202976]
[1738183904101,34.20202976,235.25,235.17,0.63757221]
[1738183904320,34.20202976,235.23,235.13,34.839733]
[1738183904626,34.32751976,235.21,235.11,34.20202976]
[1738183904805,0.12549,235.17,235.09,0.063]
[1738183905123,34.20202976,235.2,235.11,57.97891376]
[1738183905421,34.8408023,235.26,235.18,23.776884]
[1738183905634,34.8408023,235.26,235.15,57.97891376]
[1738183905635,0.12549,235.25,235.15,57.97891376]
[1738183905920,0.12549,235.23,235.17,23.776884]
[1738183906129,0.12549,235.23,235.18,0.63772877]
[1738183906305,0.12549,235.19,235.11,0.63774224]
[1738183906623,0.12549,235.12,235.09,0.063]
[1738183907002,0.12549,235.1,235.09,0.063]
[1738183907516,0.76426254,235.1,235.09,0.063]
[1738183907821,0.76426254,235.12,235.09,0.063]
[1738183908318,0.12549,235.1,235.09,0.063]
[1738183908702,0.76426254,235.1,235.09,0.063]
[1738183909103,23.40922764,235.11,235.09,0.063]
[1738183909104,23.40912764,235.13,235.09,0.063]
[1738183909319,2.5513,235.17,235.11,23.776884]
[1738183909531,0.63877254,235.19,235.12,20.85732764]
[1738183909719,20.85732764,235.19,235.11,23.776884]
[1738183909901,0.12549,235.17,235.11,24.41479657]
[1738183910103,20.98281764,235.17,235.09,0.063]
[1738183910307,0.12549,235.14,235.09,0.063]
[1738183910502,20.85732764,235.15,235.09,0.063]
[1738183910503,34.01663416,235.12,235.09,0.063]
[1738183910746,0.12549,235.1,235.09,0.063]
[1738183910921,33.89114416,235.14,235.09,0.063]
[1738183911127,0.63877254,235.13,235.09,0.063]
[1738183911632,0.12549,235.12,235.09,0.063]
[1738183911806,34.5299167,235.14,235.09,0.063]
[1738183911807,0.12549,235.13,235.09,0.063]
[1738183912009,34.01663416,235.1,235.09,0.063]
[1738183912215,36.56873416,235.1,235.09,0.063]
[1738183912439,36.69422416,235.1,235.09,0.063]
[1738183912613,36.56873416,235.1,235.09,0.0001]
[1738183912937,36.69422416,235.1,235.09,0.0001]
[1738183913137,38.4584867,235.1,235.09,0.0001]
[1738183913515,0.25098,235.06,235.04,0.063]
[1738183913734,34.6554067,235.05,235.04,0.063]
[1738183914127,34.9063867,235.05,235.04,0.0001]
[1738183914317,37.4589867,235.05,235.04,0.0001]
[1738183914522,38.4589867,235.05,235.04,0.0001]
[1738183914835,37.4589867,235.05,235.04,0.0001]
[1738183915246,38.4589867,235.05,235.04,0.0001]
[1738183915415,0.12549,235.0,234.94,0.063]
[1738183915615,34.01663416,234.95,234.94,0.063]
[1738183916441,36.57033416,234.95,234.94,0.063]
[1738183917246,36.69582416,234.95,234.94,0.063]
[1738183917425,37.4600867,234.95,234.88,0.063]
[1738183917631,35.26761416,234.89,234.88,0.063]
[1738183917850,0.12549,234.82,234.69,33.89114416]
[1738183918144,20.12549,234.78,234.66,0.63900683]
[1738183918437,0.12549,234.71,234.63,33.89114416]
[1738183918638,0.63877254,234.7,234.63,33.89114416]
[1738183918946,0.63877254,234.71,234.64,0.63919459]
[1738183919246,0.12549,234.7,234.63,33.89114416]
[1738183919538,0.12549,234.7,234.61,57.66802816]
[1738183919739,0.12549,234.68,234.59,33.89114416]
[1738183919941,34.5299167,234.67,234.6,0.63927172]
[1738183920144,33.89114416,234.67,234.59,33.89114416]
[1738183920438,0.12549,234.62,234.54,0.63926172]
[1738183920627,0.12549,234.62,234.49,1.6607]
[1738183920628,0.12549,234.6,234.51,33.89114416]
[1738183920826,0.12549,234.58,234.51,34.53064249]
[1738183921037,0.12549,234.58,234.5,0.63949833]
[1738183921231,0.12549,234.56,234.47,38.15594416]
[1738183921438,0.12549,234.54,234.47,34.53070598]
[1738183921634,33.89114416,234.61,234.51,33.89114416]
[1738183921819,0.12549,234.56,234.47,34.53064125]
[1738183922016,0.12549,234.54,234.47,33.89114416]
[1738183922222,33.89114416,234.57,234.48,0.63968787]
[1738183922429,0.12549,234.56,234.5,23.776884]
[1738183922628,0.76426254,234.56,234.48,0.63957002]
[1738183922830,34.01663416,234.55,234.45,33.89114416]
[1738183923036,33.89114416,234.51,234.43,34.5308415]
[1738183923229,0.12549,234.49,234.43,34.5308415]
[1738183923426,0.76426254,234.49,234.41,33.92114416]
[1738183923731,34.6554067,234.49,234.41,33.92114416]
[1738183923934,0.12549,234.49,234.44,23.776884]
[1738183924144,0.12549,234.44,234.41,0.03]
[1738183924345,0.12549,234.42,234.41,0.03]
[1738183924520,21.12549,234.4,234.39,0.03]
[1738183924724,21.12549,234.4,234.35,0.03]
[1738183924725,1.37647,234.39,234.35,0.03]
[1738183924937,34.14212416,234.36,234.35,0.03]
[1738183925135,20.12549,234.33,234.27,0.03]
[1738183925343,54.7808967,234.33,234.27,0.03]
[1738183925523,54.6554067,234.33,234.27,0.03]
[1738183925730,34.6554067,234.33,234.27,0.03]
[1738183925922,33.89114416,234.39,234.3,33.89114416]
[1738183926121,33.89114416,234.39,234.32,0.67013152]
[1738183926342,6.3968,234.5,234.32,34.56127568]
[1738183926343,33.89114416,234.41,234.32,34.56127568]
[1738183926555,0.63877254,234.4,234.32,33.92114416]
[1738183926852,33.89114416,234.39,234.32,0.03]
[1738183927034,0.12549,234.36,234.32,0.03]
[1738183927239,0.63877254,234.35,234.32,0.03]
[1738183927421,33.89114416,234.37,234.32,0.03]
[1738183927623,33.89114416,234.39,234.32,0.03]
[1738183927847,0.63877254,234.43,234.33,23.776884]
[1738183927848,33.89114416,234.41,234.33,23.776884]
[1738183928048,33.89114416,234.41,234.33,58.30810493]
[1738183928257,0.12549,234.4,234.34,4.2673]
[1738183928435,1.0,234.45,234.35,58.30804924]
[1738183928436,34.5299167,234.45,234.35,58.30804924]
[1738183928944,34.5299167,234.45,234.34,4.2673]
[1738183928945,0.12549,234.4,234.34,4.2673]
[1738183929129,0.12549,234.38,234.32,4.2975]
[1738183929323,33.89114416,234.41,234.33,33.89114416]
[1738183929518,33.89114416,234.43,234.35,23.776884]
[1738183929725,33.89114416,234.43,234.37,23.776884]
[1738183930028,0.12549,234.42,234.37,23.776884]
[1738183930221,0.12549,234.42,234.35,33.89114416]
[1738183930222,0.12549,234.42,234.38,0.63993619]
[1738183930422,33.89114416,234.41,234.34,4.2673]
[1738183930619,0.12549,234.36,234.32,0.03]
[1738183930823,0.76426254,234.36,234.32,0.03]
[1738183931024,0.12549,234.36,234.32,0.03]
[1738183931250,0.12549,234.34,234.32,0.03]
[1738183931548,3.5595,234.42,234.32,0.03]
[1738183931549,33.89114416,234.37,234.32,0.03]
[1738183931738,34.5299167,234.41,234.33,23.776884]
[1738183932039,0.12549,234.38,234.33,23.776884]
[1738183932439,33.89114416,234.37,234.32,0.03]
[1738183932624,35.01663416,234.33,234.32,0.03]
[1738183932828,35.01663416,234.33,234.27,0.03]
[1738183932829,34.01663416,234.28,234.27,0.03]
[1738183933030,0.12549,234.27,234.13,33.89114416]
[1738183933353,33.89114416,234.22,234.14,0.64052841]
[1738183933544,34.01663416,234.2,234.13,0.64055923]
[1738183933849,1.12549,234.3,234.13,0.64055923]
[1738183933850,33.89114416,234.24,234.17,23.776884]
[1738183934051,33.89114416,234.24,234.17,0.64045855]
[1738183934253,0.63877254,234.3,234.2,23.776884]
[1738183934452,33.89114416,234.3,234.23,23.776884]
[1738183934754,0.12549,234.29,234.25,23.776884]
[1738183935051,33.89114416,234.3,234.23,0.64019875]
[1738183935248,33.89114416,234.25,234.19,0.70331539]
[1738183935447,33.89114416,234.23,234.19,0.063]
[1738183935627,33.89114416,234.25,234.19,0.063]
[1738183935946,0.12549,234.3,234.19,0.063]
[1738183935947,33.89114416,234.27,234.19,4.333]
[1738183936129,0.63877254,234.3,234.21,23.776884]
[1738183936130,33.89114416,234.29,234.21,23.776884]
[1738183936448,34.5299167,234.33,234.23,23.776884]
[1738183936641,33.89114416,234.39,234.3,33.89114416]
[1738183936844,33.89114416,234.39,234.32,23.776884]
[1738183937048,0.12549,234.36,234.31,0.64000221]
[1738183937248,33.89114416,234.33,234.24,33.89114416]
[1738183937451,33.89114416,234.33,234.26,23.776884]
[1738183937632,33.89114416,234.33,234.28,23.776884]
[1738183937829,0.76426254,234.32,234.25,0.64019205]
[1738183938032,0.12549,234.26,234.21,0.64026213]
[1738183938231,33.89114416,234.25,234.19,4.97336799]
[1738183938432,33.89114416,234.31,234.21,33.89114416]
[1738183938730,2.5597,234.4,234.26,23.776884]
[1738183938931,0.63877254,234.39,234.27,0.64007684]
[1738183939160,20.12549,234.38,234.27,0.64007684]
[1738183939365,0.12549,234.36,234.2,0.89115394]
[1738183939570,0.63877254,234.37,234.2,0.89115394]
[1738183939574,0.12549,234.34,234.21,23.776884]
[1738183939854,0.12549,234.29,234.21,34.53145075]
[1738183940073,33.89114416,234.27,234.19,33.95414416]
[1738183940352,0.12549,234.24,234.19,0.063]
[1738183940541,0.12549,234.22,234.19,0.063]
[1738183940857,0.76426254,234.22,234.19,0.063]
[1738183941070,0.12549,234.22,234.19,0.063]
[1738183941349,36.45244416,234.25,234.19,0.063]
[1738183941550,0.12549,234.24,234.19,0.063]
[1738183941857,33.89114416,234.21,234.19,0.063]
[1738183942550,0.63877254,234.24,234.19,0.063]
[1738183942939,0.12549,234.23,234.19,0.063]
[1738183943342,0.12549,234.24,234.19,0.063]
[1738183943541,33.89114416,234.23,234.19,0.063]
[1738183943747,0.12549,234.22,234.19,0.063]
[1738183943955,0.76426254,234.22,234.19,100.163]
[1738183944141,0.12549,234.22,234.19,100.163]
[1738183944563,0.12549,234.2,234.19,100.163]
[1738183944787,34.01663416,234.2,234.19,100.163]
[1738183946870,36.57853416,234.2,234.19,100.163]
[1738183947731,36.45284416,234.22,234.19,100.163]
[1738183947933,6.4032,234.26,234.19,100.163]
[1738183947934,0.03,234.27,234.2,24.41737984]
[1738183948164,0.03,234.27,234.22,23.776884]
[1738183948360,0.03,234.27,234.24,23.776884]
[1738183948531,0.03,234.27,234.25,0.64025039]
[1738183948972,0.03,234.27,234.26,23.776884]
[1738183949464,0.03,234.27,234.26,0.6402504]
[1738183949646,0.03,234.27,234.26,23.776884]
[1738183950058,0.03,234.27,234.21,38.41162416]
[1738183950239,0.03,234.27,234.26,24.153354]
[1738183950443,0.03,234.27,234.26,58.68452787]
[1738183950765,0.03,234.27,234.26,58.55903787]
[1738183950947,0.03,234.27,234.26,24.41691371]
[1738183951465,0.12549,234.26,234.19,100.163]
[1738183951770,0.12549,234.22,234.19,100.163]
[1738183952139,0.03,234.27,234.2,24.41735409]
[1738183952361,0.03,234.27,234.2,58.30849825]
[1738183952673,0.03,234.27,234.22,33.89114416]
[1738183952966,0.03,234.27,234.2,24.41735409]
[1738183952967,0.12549,234.26,234.2,0.64024146]
[1738183953152,33.89114416,234.23,234.19,100.163]
[1738183953354,0.12549,234.22,234.19,100.163]
[1738183953565,0.12549,234.2,234.19,100.163]
[1738183953861,0.03,234.27,234.19,100.163]
[1738183954047,0.03,234.27,234.23,33.89114416]
[1738183954249,0.03,234.27,234.24,0.64021002]
[1738183954571,0.03,234.27,234.24,0.64026888]
[1738183954870,0.03,234.27,234.22,24.41710643]
[1738183955066,0.03,234.27,234.25,0.64022243]
[1738183955367,0.03,234.27,234.2,4.90984349]
[1738183955567,0.12549,234.26,234.2,0.64024349]
[1738183955742,33.89114416,234.25,234.19,100.163]
[1738183955942,33.89114416,234.23,234.19,100.163]
[1738183956544,0.12549,234.22,234.19,100.163]
[1738183956939,0.12549,234.2,234.19,100.163]
[1738183957149,0.76426254,234.2,234.19,100.163]
[1738183957349,0.88975254,234.2,234.19,100.163]
[1738183957543,0.76426254,234.2,234.19,65.47249341]
[1738183958283,34.5299167,234.23,234.19,65.53549341]
[1738183958445,33.89114416,234.2,234.19,65.53549341]